[Event "Titled Tuesday Blitz March 21 Late 2023"]
[White "Kamsky, Gata"]
[Black "Bok, Benjamin"]
[WhiteFideId "2000024"]
[BlackFideId "1017063"]
[WhiteElo "2666"]
[BlackElo "2658"]
[Result "1/2-1/2"]
[Round "08"]
[TimeControl "180+2"]
[Date "2023.03.21"]
[WhiteClock "0:00:21"]
[BlackClock "0:00:10"]

1. e4 {[%clk 0:03:00]}  c5 {[%clk 0:02:59]} 2. Nf3 {[%clk 0:02:59]}  d6 {[%clk 0:03:00]} 3. d4 {[%clk 0:02:58]}  cxd4 {[%clk 0:03:01]} 4. Nxd4 {[%clk 0:02:58]}  Nf6 {[%clk 0:03:01]} 5. Nc3 {[%clk 0:02:59]}  a6 {[%clk 0:03:01]} 6. a4 {[%clk 0:02:59]}  e6 {[%clk 0:03:02]} 7. a5 {[%clk 0:02:58]}  Be7 {[%clk 0:03:02]} 8. Bd3 {[%clk 0:02:58]}  O-O {[%clk 0:03:02]} 9. O-O {[%clk 0:02:58]}  e5 {[%clk 0:02:58]} 10. Nb3 {[%clk 0:02:33]}  Be6 {[%clk 0:02:57]} 11. Nd5 {[%clk 0:02:33]}  Nxd5 {[%clk 0:02:16]} 12. exd5 {[%clk 0:02:32]}  Bxd5 {[%clk 0:02:17]} 13. Bxh7+ {[%clk 0:02:31]}  Kxh7 {[%clk 0:02:18]} 14. Qxd5 {[%clk 0:02:31]}  Nc6 {[%clk 0:02:19]} 15. Be3 {[%clk 0:02:25]}  Qc8 {[%clk 0:02:17]} 16. Rad1 {[%clk 0:02:12]}  Qe6 {[%clk 0:01:50]} 17. Qxe6 {[%clk 0:02:10]}  fxe6 {[%clk 0:01:51]} 18. f3 {[%clk 0:02:05]}  Rac8 {[%clk 0:01:47]} 19. c3 {[%clk 0:02:03]}  d5 {[%clk 0:01:22]} 20. Bc5 {[%clk 0:01:59]}  Rfe8 {[%clk 0:00:55]} 21. Bxe7 {[%clk 0:01:58]}  Rxe7 {[%clk 0:00:56]} 22. Rfe1 {[%clk 0:01:58]}  Kg6 {[%clk 0:00:54]} 23. Ra1 {[%clk 0:01:55]}  Kf6 {[%clk 0:00:53]} 24. Nc5 {[%clk 0:01:51]}  g5 {[%clk 0:00:47]} 25. h3 {[%clk 0:01:46]}  Nxa5 {[%clk 0:00:30]} 26. Rxa5 {[%clk 0:01:43]}  b6 {[%clk 0:00:31]} 27. Ne4+ {[%clk 0:01:38]}  dxe4 {[%clk 0:00:30]} 28. Rxa6 {[%clk 0:01:38]}  exf3 {[%clk 0:00:29]} 29. Rxb6 {[%clk 0:01:37]}  fxg2 {[%clk 0:00:26]} 30. Kxg2 {[%clk 0:01:37]}  Rd7 {[%clk 0:00:21]} 31. Rf1+ {[%clk 0:01:34]}  Ke7 {[%clk 0:00:20]} 32. Rb5 {[%clk 0:01:34]}  Rd2+ {[%clk 0:00:19]} 33. Rf2 {[%clk 0:01:34]}  Rd5 {[%clk 0:00:15]} 34. Rb7+ {[%clk 0:01:33]}  Kd6 {[%clk 0:00:15]} 35. Re2 {[%clk 0:01:27]}  Rh8 {[%clk 0:00:13]} 36. Rb6+ {[%clk 0:01:15]}  Kd7 {[%clk 0:00:13]} 37. Rf2 {[%clk 0:01:10]}  Ke7 {[%clk 0:00:10]} 38. Rb7+ {[%clk 0:01:07]}  Kd6 {[%clk 0:00:10]} 39. Rb6+ {[%clk 0:00:56]}  Ke7 {[%clk 0:00:10]} 40. Rb7+ {[%clk 0:00:22]}  Kd6 {[%clk 0:00:10]} 41. Rb6+ {[%clk 0:00:21]}  Ke7 {[%clk 0:00:10]} 1/2-1/2


[Site "https://www.chess.com"]

[Event "Titled Tuesday Blitz March 21 Late 2023"]
[White "Tregubov, Pavel V."]
[Black "Zierk, Steven"]
[WhiteFideId "4115341"]
[BlackFideId "2034255"]
[WhiteElo "2425"]
[BlackElo "2494"]
[Result "0-1"]
[Round "08"]
[TimeControl "180+2"]
[Date "2023.03.21"]
[WhiteClock "0:00:12"]
[BlackClock "0:01:17"]

1. e4 {[%clk 0:03:00]}  e6 {[%clk 0:03:00]} 2. d4 {[%clk 0:02:59]}  d5 {[%clk 0:03:01]} 3. e5 {[%clk 0:02:59]}  c5 {[%clk 0:03:01]} 4. c3 {[%clk 0:03:00]}  Qb6 {[%clk 0:03:00]} 5. Nf3 {[%clk 0:02:58]}  Bd7 {[%clk 0:03:00]} 6. Be2 {[%clk 0:02:57]}  Bb5 {[%clk 0:03:00]} 7. Bxb5+ {[%clk 0:02:57]}  Qxb5 {[%clk 0:03:00]} 8. Na3 {[%clk 0:02:56]}  Qa6 {[%clk 0:02:58]} 9. c4 {[%clk 0:02:34]}  dxc4 {[%clk 0:02:31]} 10. O-O {[%clk 0:02:31]}  Nc6 {[%clk 0:02:31]} 11. d5 {[%clk 0:02:26]}  exd5 {[%clk 0:02:14]} 12. Qxd5 {[%clk 0:02:26]}  Rd8 {[%clk 0:02:13]} 13. Qe4 {[%clk 0:02:16]}  Nd4 {[%clk 0:02:06]} 14. Be3 {[%clk 0:02:02]}  Qc6 {[%clk 0:02:03]} 15. Qxc6+ {[%clk 0:01:56]}  Nxc6 {[%clk 0:02:04]} 16. Nxc4 {[%clk 0:01:55]}  b5 {[%clk 0:02:04]} 17. Nd6+ {[%clk 0:01:54]}  Bxd6 {[%clk 0:02:02]} 18. exd6 {[%clk 0:01:54]}  Rxd6 {[%clk 0:01:57]} 19. Bxc5 {[%clk 0:01:54]}  Rd5 {[%clk 0:01:57]} 20. Rac1 {[%clk 0:01:50]}  Nf6 {[%clk 0:01:52]} 21. Be3 {[%clk 0:01:04]}  Kd7 {[%clk 0:01:49]} 22. h3 {[%clk 0:00:57]}  a5 {[%clk 0:01:38]} 23. a3 {[%clk 0:00:54]}  Rc8 {[%clk 0:01:35]} 24. Ng5 {[%clk 0:00:53]}  Ne5 {[%clk 0:01:24]} 25. Rxc8 {[%clk 0:00:50]}  Kxc8 {[%clk 0:01:25]} 26. Rc1+ {[%clk 0:00:35]}  Kd7 {[%clk 0:01:22]} 27. Bb6 {[%clk 0:00:32]}  Nc4 {[%clk 0:01:19]} 28. Rxc4 {[%clk 0:00:13]}  bxc4 {[%clk 0:01:20]} 29. Nxf7 {[%clk 0:00:12]}  Ke7 {[%clk 0:01:17]} 0-1


[Site "https://www.chess.com"]

[Event "Titled Tuesday Blitz March 21 Late 2023"]
[White "Dardha, Daniel"]
[Black "Taboas Rodriguez, Daniel"]
[WhiteFideId "240990"]
[BlackFideId "2208466"]
[WhiteElo "2581"]
[BlackElo "2365"]
[Result "1-0"]
[Round "08"]
[TimeControl "180+2"]
[Date "2023.03.21"]
[WhiteClock "0:02:15"]
[BlackClock "0:01:12"]

1. e4 {[%clk 0:03:00]}  e5 {[%clk 0:02:59]} 2. d4 {[%clk 0:02:59]}  exd4 {[%clk 0:02:59]} 3. Qxd4 {[%clk 0:03:00]}  Nc6 {[%clk 0:03:00]} 4. Qc4 {[%clk 0:03:00]}  Nf6 {[%clk 0:02:59]} 5. Nc3 {[%clk 0:03:00]}  Bb4 {[%clk 0:02:57]} 6. Bd2 {[%clk 0:03:00]}  O-O {[%clk 0:02:51]} 7. O-O-O {[%clk 0:02:58]}  Re8 {[%clk 0:02:51]} 8. f3 {[%clk 0:02:58]}  a5 {[%clk 0:02:37]} 9. Qe2 {[%clk 0:02:56]}  b6 {[%clk 0:02:36]} 10. g4 {[%clk 0:02:53]}  Ba6 {[%clk 0:02:36]} 11. Qg2 {[%clk 0:02:48]}  Bxf1 {[%clk 0:02:35]} 12. Qxf1 {[%clk 0:02:49]}  d5 {[%clk 0:02:30]} 13. g5 {[%clk 0:02:47]}  d4 {[%clk 0:02:25]} 14. gxf6 {[%clk 0:02:40]}  dxc3 {[%clk 0:02:25]} 15. Bxc3 {[%clk 0:02:41]}  Qc8 {[%clk 0:02:14]} 16. fxg7 {[%clk 0:02:32]}  Bxc3 {[%clk 0:02:12]} 17. bxc3 {[%clk 0:02:32]}  Qe6 {[%clk 0:02:09]} 18. Kb1 {[%clk 0:02:26]}  Ne5 {[%clk 0:02:03]} 19. Ne2 {[%clk 0:02:25]}  Nc4 {[%clk 0:02:02]} 20. Nd4 {[%clk 0:02:25]}  Na3+ {[%clk 0:01:54]} 21. Kb2 {[%clk 0:02:26]}  Nc4+ {[%clk 0:01:53]} 22. Ka1 {[%clk 0:02:26]}  Ne3 {[%clk 0:01:34]} 23. Nxe6 {[%clk 0:02:19]}  Nxf1 {[%clk 0:01:32]} 24. Nxc7 {[%clk 0:02:20]}  Ne3 {[%clk 0:01:30]} 25. Rd3 {[%clk 0:02:20]}  Nxc2+ {[%clk 0:01:22]} 26. Kb2 {[%clk 0:02:19]}  Rad8 {[%clk 0:01:18]} 27. Nxe8 {[%clk 0:02:14]}  Rxd3 {[%clk 0:01:14]} 28. Kxc2 {[%clk 0:02:15]}  Rxf3 {[%clk 0:01:13]} 29. e5 {[%clk 0:02:16]}  Re3 {[%clk 0:01:12]} 30. Rg1 {[%clk 0:02:15]} 1-0


[Site "https://www.chess.com"]

[Event "Titled Tuesday Blitz March 21 Late 2023"]
[White "The_Sherman_Variation"]
[Black "Rustemov, Alexander"]
[BlackFideId "4119002"]
[WhiteElo "2567"]
[BlackElo "2863"]
[Result "0-1"]
[Round "08"]
[TimeControl "180+2"]
[Date "2023.03.21"]
[WhiteClock "0:00:17"]
[BlackClock "0:00:28"]

1. b3 {[%clk 0:02:32]}  d5 {[%clk 0:02:59]} 2. Bb2 {[%clk 0:02:32]}  Nf6 {[%clk 0:02:59]} 3. e3 {[%clk 0:02:32]}  Bf5 {[%clk 0:02:59]} 4. Be2 {[%clk 0:02:30]}  e6 {[%clk 0:02:58]} 5. Nf3 {[%clk 0:02:31]}  h6 {[%clk 0:02:57]} 6. O-O {[%clk 0:02:31]}  Be7 {[%clk 0:02:58]} 7. d4 {[%clk 0:02:30]}  O-O {[%clk 0:02:57]} 8. c4 {[%clk 0:02:30]}  c6 {[%clk 0:02:56]} 9. Nbd2 {[%clk 0:02:29]}  Nbd7 {[%clk 0:02:56]} 10. Ne5 {[%clk 0:02:26]}  Nxe5 {[%clk 0:02:51]} 11. dxe5 {[%clk 0:02:27]}  Nd7 {[%clk 0:02:50]} 12. f4 {[%clk 0:02:04]}  Nc5 {[%clk 0:02:43]} 13. Nf3 {[%clk 0:01:55]}  a5 {[%clk 0:02:37]} 14. Rc1 {[%clk 0:01:44]}  Ne4 {[%clk 0:02:32]} 15. Nd4 {[%clk 0:01:40]}  Bg6 {[%clk 0:02:31]} 16. cxd5 {[%clk 0:01:24]}  exd5 {[%clk 0:02:30]} 17. f5 {[%clk 0:01:22]}  Bh7 {[%clk 0:02:29]} 18. Bd3 {[%clk 0:01:22]}  Bg5 {[%clk 0:02:27]} 19. Rf3 {[%clk 0:01:22]}  Re8 {[%clk 0:02:23]} 20. Ne2 {[%clk 0:01:13]}  Qb6 {[%clk 0:02:15]} 21. Bd4 {[%clk 0:01:10]}  c5 {[%clk 0:02:13]} 22. Bb2 {[%clk 0:01:11]}  Rad8 {[%clk 0:02:02]} 23. Qe1 {[%clk 0:01:09]}  a4 {[%clk 0:01:42]} 24. h4 {[%clk 0:01:09]}  Be7 {[%clk 0:01:39]} 25. f6 {[%clk 0:01:08]}  Bf8 {[%clk 0:01:35]} 26. Bxe4 {[%clk 0:01:05]}  Bxe4 {[%clk 0:01:31]} 27. Rg3 {[%clk 0:01:05]}  g6 {[%clk 0:01:26]} 28. Qd1 {[%clk 0:00:54]}  axb3 {[%clk 0:01:25]} 29. axb3 {[%clk 0:00:55]}  Kh7 {[%clk 0:01:23]} 30. Nf4 {[%clk 0:00:54]}  c4 {[%clk 0:01:16]} 31. Bd4 {[%clk 0:00:53]}  Qxb3 {[%clk 0:01:16]} 32. Qg4 {[%clk 0:00:52]}  Bf5 {[%clk 0:01:12]} 33. Qf3 {[%clk 0:00:50]}  b5 {[%clk 0:00:48]} 34. h5 {[%clk 0:00:39]}  Be4 {[%clk 0:00:46]} 35. Qg4 {[%clk 0:00:38]}  g5 {[%clk 0:00:46]} 36. Nh3 {[%clk 0:00:37]}  Qa3 {[%clk 0:00:37]} 37. Rf1 {[%clk 0:00:35]}  Qa6 {[%clk 0:00:36]} 38. Rf4 {[%clk 0:00:24]}  Qe6 {[%clk 0:00:35]} 39. Nxg5+ {[%clk 0:00:18]}  hxg5 {[%clk 0:00:35]} 40. Qxg5 {[%clk 0:00:18]}  Bh6 {[%clk 0:00:35]} 41. Qh4 {[%clk 0:00:18]}  Rg8 {[%clk 0:00:34]} 42. Rxe4 {[%clk 0:00:18]}  dxe4 {[%clk 0:00:33]} 43. Qxe4+ {[%clk 0:00:19]}  Kh8 {[%clk 0:00:33]} 44. Rf3 {[%clk 0:00:19]}  Rg4 {[%clk 0:00:33]} 45. Qb1 {[%clk 0:00:18]}  Rdg8 {[%clk 0:00:33]} 46. Rf2 {[%clk 0:00:18]}  Qd5 {[%clk 0:00:29]} 47. Qf1 {[%clk 0:00:17]}  b4 {[%clk 0:00:28]} 0-1


[Site "https://www.chess.com"]

[Event "Titled Tuesday Blitz March 21 Late 2023"]
[White "Moussard, Jules"]
[Black "Mazurkiewicz, Michal"]
[WhiteFideId "642908"]
[BlackFideId "1124943"]
[WhiteElo "2610"]
[BlackElo "2054"]
[Result "1-0"]
[Round "08"]
[TimeControl "180+2"]
[Date "2023.03.21"]
[WhiteClock "0:02:16"]
[BlackClock "0:00:01"]

1. f4 {[%clk 0:03:00]}  g6 {[%clk 0:02:58]} 2. Nf3 {[%clk 0:03:00]}  Bg7 {[%clk 0:02:58]} 3. g3 {[%clk 0:03:00]}  c5 {[%clk 0:02:58]} 4. Bg2 {[%clk 0:03:00]}  Nc6 {[%clk 0:02:59]} 5. O-O {[%clk 0:03:01]}  d5 {[%clk 0:02:59]} 6. c3 {[%clk 0:03:01]}  Bg4 {[%clk 0:02:58]} 7. d3 {[%clk 0:03:01]}  e6 {[%clk 0:02:58]} 8. e4 {[%clk 0:03:01]}  Nge7 {[%clk 0:02:57]} 9. h3 {[%clk 0:02:58]}  Bxf3 {[%clk 0:02:56]} 10. Qxf3 {[%clk 0:02:59]}  O-O {[%clk 0:02:55]} 11. Be3 {[%clk 0:02:58]}  d4 {[%clk 0:02:54]} 12. Bf2 {[%clk 0:02:59]}  dxc3 {[%clk 0:02:54]} 13. bxc3 {[%clk 0:02:58]}  b6 {[%clk 0:02:53]} 14. Kh2 {[%clk 0:02:58]}  Qc7 {[%clk 0:02:53]} 15. e5 {[%clk 0:02:58]}  Rad8 {[%clk 0:02:50]} 16. Nd2 {[%clk 0:02:59]}  Nd5 {[%clk 0:02:46]} 17. Ne4 {[%clk 0:02:59]}  Nce7 {[%clk 0:02:06]} 18. Rad1 {[%clk 0:02:57]}  f5 {[%clk 0:01:45]} 19. exf6 {[%clk 0:02:54]}  Nxf6 {[%clk 0:01:46]} 20. Ng5 {[%clk 0:02:54]}  Rd6 {[%clk 0:01:37]} 21. Rfe1 {[%clk 0:02:54]}  Qd7 {[%clk 0:01:37]} 22. d4 {[%clk 0:02:54]}  cxd4 {[%clk 0:01:25]} 23. Rxd4 {[%clk 0:02:54]}  Nfd5 {[%clk 0:01:03]} 24. Nxe6 {[%clk 0:02:32]}  Bxd4 {[%clk 0:00:12]} 25. Nxf8 {[%clk 0:02:32]}  Bxf2 {[%clk 0:00:13]} 26. Nxd7 {[%clk 0:02:31]}  Bxe1 {[%clk 0:00:13]} 27. Ne5 {[%clk 0:02:25]}  Bxc3 {[%clk 0:00:09]} 28. h4 {[%clk 0:02:25]}  Nf5 {[%clk 0:00:05]} 29. h5 {[%clk 0:02:21]}  Nde3 {[%clk 0:00:02]} 30. Qa8+ {[%clk 0:02:20]}  Kg7 {[%clk 0:00:02]} 31. Qxa7+ {[%clk 0:02:19]}  Kh6 {[%clk 0:00:02]} 32. Nf7+ {[%clk 0:02:18]}  Kxh5 {[%clk 0:00:02]} 33. Nxd6 {[%clk 0:02:18]}  Ng4+ {[%clk 0:00:02]} 34. Kg1 {[%clk 0:02:16]}  Bd4+ {[%clk 0:00:02]} 35. Kf1 {[%clk 0:02:16]}  Nfe3+ {[%clk 0:00:01]} 36. Ke2 {[%clk 0:02:16]} 1-0


[Site "https://www.chess.com"]

[Event "Titled Tuesday Blitz March 21 Late 2023"]
[White "Urazayev, Arystanbek"]
[Black "Melikyan, Gnel"]
[WhiteFideId "13709810"]
[BlackFideId "54109990"]
[WhiteElo "2479"]
[BlackElo "2138"]
[Result "1-0"]
[Round "08"]
[TimeControl "180+2"]
[Date "2023.03.21"]
[WhiteClock "0:00:07"]
[BlackClock "0:00:04"]

1. e4 {[%clk 0:02:56]}  e5 {[%clk 0:02:57]} 2. Nf3 {[%clk 0:02:55]}  Nf6 {[%clk 0:02:57]} 3. Nxe5 {[%clk 0:02:55]}  d6 {[%clk 0:02:56]} 4. Nf3 {[%clk 0:02:55]}  Nxe4 {[%clk 0:02:56]} 5. d4 {[%clk 0:02:56]}  d5 {[%clk 0:02:56]} 6. Bd3 {[%clk 0:02:57]}  Bd6 {[%clk 0:02:54]} 7. O-O {[%clk 0:02:58]}  O-O {[%clk 0:02:53]} 8. c4 {[%clk 0:02:58]}  c6 {[%clk 0:02:52]} 9. cxd5 {[%clk 0:02:59]}  cxd5 {[%clk 0:02:52]} 10. Nc3 {[%clk 0:02:59]}  Nxc3 {[%clk 0:02:52]} 11. bxc3 {[%clk 0:03:00]}  Nc6 {[%clk 0:02:52]} 12. Rb1 {[%clk 0:02:54]}  h6 {[%clk 0:02:49]} 13. Bc2 {[%clk 0:02:47]}  Ne7 {[%clk 0:02:44]} 14. Re1 {[%clk 0:02:46]}  b6 {[%clk 0:02:36]} 15. h3 {[%clk 0:02:40]}  Bf5 {[%clk 0:02:25]} 16. Bxf5 {[%clk 0:02:38]}  Nxf5 {[%clk 0:02:25]} 17. Qd3 {[%clk 0:02:39]}  Qd7 {[%clk 0:02:21]} 18. Ne5 {[%clk 0:02:38]}  Bxe5 {[%clk 0:02:18]} 19. Rxe5 {[%clk 0:02:38]}  Ne7 {[%clk 0:02:12]} 20. Ba3 {[%clk 0:02:34]}  Rfe8 {[%clk 0:02:10]} 21. Qb5 {[%clk 0:02:20]}  Qxb5 {[%clk 0:01:44]} 22. Rxb5 {[%clk 0:02:21]}  Nc6 {[%clk 0:01:41]} 23. Rexd5 {[%clk 0:02:08]}  Re1+ {[%clk 0:01:34]} 24. Kh2 {[%clk 0:02:08]}  Rc8 {[%clk 0:01:34]} 25. c4 {[%clk 0:01:54]}  Rd1 {[%clk 0:01:27]} 26. Bb2 {[%clk 0:01:30]}  Rb1 {[%clk 0:01:09]} 27. c5 {[%clk 0:01:20]}  Na5 {[%clk 0:01:01]} 28. cxb6 {[%clk 0:01:04]}  axb6 {[%clk 0:00:50]} 29. Ba3 {[%clk 0:00:55]}  Rxb5 {[%clk 0:00:48]} 30. Rxb5 {[%clk 0:00:56]}  Nc4 {[%clk 0:00:44]} 31. Bc1 {[%clk 0:00:46]}  Ra8 {[%clk 0:00:29]} 32. Rb4 {[%clk 0:00:46]}  b5 {[%clk 0:00:29]} 33. Rxb5 {[%clk 0:00:35]}  Rxa2 {[%clk 0:00:29]} 34. Rb8+ {[%clk 0:00:36]}  Kh7 {[%clk 0:00:28]} 35. Rc8 {[%clk 0:00:35]}  Nd6 {[%clk 0:00:25]} 36. Rd8 {[%clk 0:00:28]}  Ne4 {[%clk 0:00:21]} 37. f3 {[%clk 0:00:25]}  Nf2 {[%clk 0:00:18]} 38. Be3 {[%clk 0:00:20]}  Nd3 {[%clk 0:00:19]} 39. d5 {[%clk 0:00:17]}  Ne1 {[%clk 0:00:19]} 40. d6 {[%clk 0:00:16]}  Rxg2+ {[%clk 0:00:19]} 41. Kh1 {[%clk 0:00:16]}  Rg6 {[%clk 0:00:16]} 42. Bc5 {[%clk 0:00:12]}  Nxf3 {[%clk 0:00:09]} 43. d7 {[%clk 0:00:11]}  Ne5 {[%clk 0:00:08]} 44. Rh8+ {[%clk 0:00:11]}  Kxh8 {[%clk 0:00:09]} 45. d8=Q+ {[%clk 0:00:11]}  Kh7 {[%clk 0:00:09]} 46. Qd5 {[%clk 0:00:10]}  f6 {[%clk 0:00:06]} 47. Bd4 {[%clk 0:00:11]}  Rg5 {[%clk 0:00:06]} 48. Qe4+ {[%clk 0:00:11]}  Kh8 {[%clk 0:00:06]} 49. h4 {[%clk 0:00:10]}  Rg4 {[%clk 0:00:06]} 50. Qa8+ {[%clk 0:00:09]}  Kh7 {[%clk 0:00:07]} 51. Bxe5 {[%clk 0:00:10]}  fxe5 {[%clk 0:00:06]} 52. Qd8 {[%clk 0:00:10]}  Kg6 {[%clk 0:00:05]} 53. Kh2 {[%clk 0:00:08]}  Rf4 {[%clk 0:00:05]} 54. Kg3 {[%clk 0:00:09]}  Rf5 {[%clk 0:00:05]} 55. Qe8+ {[%clk 0:00:09]}  Kh7 {[%clk 0:00:05]} 56. h5 {[%clk 0:00:09]}  Rg5+ {[%clk 0:00:05]} 57. Kf3 {[%clk 0:00:09]}  Rf5+ {[%clk 0:00:05]} 58. Ke4 {[%clk 0:00:10]}  Rg5 {[%clk 0:00:06]} 59. Kd5 {[%clk 0:00:09]}  Rg4 {[%clk 0:00:04]} 60. Qf7 {[%clk 0:00:08]}  Rg5 {[%clk 0:00:05]} 61. Ke4 {[%clk 0:00:07]}  Rg4+ {[%clk 0:00:05]} 62. Kxe5 {[%clk 0:00:08]}  Rg5+ {[%clk 0:00:06]} 63. Ke6 {[%clk 0:00:08]}  Kh8 {[%clk 0:00:06]} 64. Ke7 {[%clk 0:00:08]}  Kh7 {[%clk 0:00:07]} 65. Kf8 {[%clk 0:00:07]}  Rxh5 {[%clk 0:00:04]} 66. Qxh5 {[%clk 0:00:07]} 1-0


[Site "https://www.chess.com"]

[Event "Titled Tuesday Blitz March 21 Late 2023"]
[White "Terry, Renato"]
[Black "Seemann, Jakub"]
[WhiteFideId "3803457"]
[BlackFideId "21874697"]
[WhiteElo "2579"]
[BlackElo "2364"]
[Result "1-0"]
[Round "08"]
[TimeControl "180+2"]
[Date "2023.03.21"]
[WhiteClock "0:02:16"]
[BlackClock "0:01:06"]

1. e4 {[%clk 0:03:00]}  c6 {[%clk 0:03:00]} 2. Nf3 {[%clk 0:03:00]}  d5 {[%clk 0:03:01]} 3. exd5 {[%clk 0:03:01]}  cxd5 {[%clk 0:03:01]} 4. Ne5 {[%clk 0:03:01]}  a6 {[%clk 0:02:57]} 5. d4 {[%clk 0:03:02]}  e6 {[%clk 0:02:57]} 6. c3 {[%clk 0:03:02]}  Nf6 {[%clk 0:02:57]} 7. Bd3 {[%clk 0:03:03]}  Bd6 {[%clk 0:02:57]} 8. Qe2 {[%clk 0:03:01]}  Nbd7 {[%clk 0:02:57]} 9. f4 {[%clk 0:03:02]}  Qc7 {[%clk 0:02:56]} 10. O-O {[%clk 0:03:02]}  b5 {[%clk 0:02:52]} 11. Nd2 {[%clk 0:03:02]}  Bb7 {[%clk 0:02:52]} 12. Rf3 {[%clk 0:03:02]}  Nb6 {[%clk 0:02:45]} 13. Rh3 {[%clk 0:03:00]}  Nc4 {[%clk 0:02:45]} 14. g4 {[%clk 0:02:59]}  Nxd2 {[%clk 0:02:45]} 15. Bxd2 {[%clk 0:02:59]}  Ne4 {[%clk 0:02:46]} 16. g5 {[%clk 0:02:58]}  Nxd2 {[%clk 0:02:28]} 17. Qxd2 {[%clk 0:02:58]}  f6 {[%clk 0:02:28]} 18. Ng6 {[%clk 0:02:55]}  O-O-O {[%clk 0:02:19]} 19. Nxh8 {[%clk 0:02:54]}  Bxf4 {[%clk 0:02:17]} 20. Qe2 {[%clk 0:02:54]}  Rxh8 {[%clk 0:02:07]} 21. gxf6 {[%clk 0:02:55]}  Kb8 {[%clk 0:01:55]} 22. fxg7 {[%clk 0:02:35]}  Qxg7+ {[%clk 0:01:55]} 23. Kh1 {[%clk 0:02:35]}  e5 {[%clk 0:01:54]} 24. Rg1 {[%clk 0:02:35]}  Qf6 {[%clk 0:01:36]} 25. Qf2 {[%clk 0:02:27]}  h5 {[%clk 0:01:29]} 26. Rf1 {[%clk 0:02:26]}  h4 {[%clk 0:01:17]} 27. Rf3 {[%clk 0:02:26]}  Rf8 {[%clk 0:01:06]} 28. dxe5 {[%clk 0:02:16]}  Qxe5 {[%clk 0:01:06]} 29. Qd4 {[%clk 0:02:16]} 1-0


[Site "https://www.chess.com"]

[Event "Titled Tuesday Blitz March 21 Late 2023"]
[White "Narayanan.S.L"]
[Black "Ambartsumova, Karina"]
[WhiteFideId "5058422"]
[BlackFideId "4166299"]
[WhiteElo "2547"]
[BlackElo "2300"]
[Result "1/2-1/2"]
[Round "08"]
[TimeControl "180+2"]
[Date "2023.03.21"]
[WhiteClock "0:00:36"]
[BlackClock "0:00:13"]

1. e4 {[%clk 0:02:59]}  e5 {[%clk 0:02:54]} 2. Nf3 {[%clk 0:02:58]}  Nc6 {[%clk 0:02:54]} 3. d4 {[%clk 0:02:58]}  exd4 {[%clk 0:02:54]} 4. Nxd4 {[%clk 0:02:58]}  Bc5 {[%clk 0:02:54]} 5. Nb3 {[%clk 0:02:57]}  Bb6 {[%clk 0:02:54]} 6. Nc3 {[%clk 0:02:57]}  Nf6 {[%clk 0:02:54]} 7. Qe2 {[%clk 0:02:57]}  O-O {[%clk 0:02:54]} 8. Bg5 {[%clk 0:02:57]}  h6 {[%clk 0:02:48]} 9. h4 {[%clk 0:02:57]}  Nd4 {[%clk 0:02:36]} 10. Qd3 {[%clk 0:02:51]}  Nxb3 {[%clk 0:02:23]} 11. axb3 {[%clk 0:02:51]}  Re8 {[%clk 0:02:14]} 12. O-O-O {[%clk 0:02:50]}  hxg5 {[%clk 0:01:41]} 13. hxg5 {[%clk 0:02:49]}  Ng4 {[%clk 0:01:36]} 14. f4 {[%clk 0:02:41]}  Nf2 {[%clk 0:01:33]} 15. Qg3 {[%clk 0:02:40]}  Nxh1 {[%clk 0:01:32]} 16. Qh4 {[%clk 0:02:38]}  Nf2 {[%clk 0:01:29]} 17. Re1 {[%clk 0:02:27]}  d5 {[%clk 0:01:08]} 18. Bb5 {[%clk 0:02:27]}  c6 {[%clk 0:01:08]} 19. Bd3 {[%clk 0:02:00]}  dxe4 {[%clk 0:01:01]} 20. Nxe4 {[%clk 0:02:00]}  Bf5 {[%clk 0:00:44]} 21. Rh1 {[%clk 0:00:33]}  Nxh1 {[%clk 0:00:39]} 22. Nf6+ {[%clk 0:00:34]}  gxf6 {[%clk 0:00:35]} 23. Bxf5 {[%clk 0:00:34]}  fxg5 {[%clk 0:00:15]} 24. Qh7+ {[%clk 0:00:33]}  Kf8 {[%clk 0:00:14]} 25. Qh8+ {[%clk 0:00:34]}  Ke7 {[%clk 0:00:12]} 26. Qe5+ {[%clk 0:00:34]}  Kf8 {[%clk 0:00:12]} 27. Qh8+ {[%clk 0:00:35]}  Ke7 {[%clk 0:00:13]} 28. Qe5+ {[%clk 0:00:35]}  Kf8 {[%clk 0:00:13]} 29. Qh8+ {[%clk 0:00:36]} 1/2-1/2


[Site "https://www.chess.com"]

[Event "Titled Tuesday Blitz March 21 Late 2023"]
[White "Medina Paz, Miguel"]
[Black "Bartel, Mateusz"]
[WhiteFideId "7300379"]
[BlackFideId "1112635"]
[WhiteElo "2428"]
[BlackElo "2521"]
[Result "0-1"]
[Round "08"]
[TimeControl "180+2"]
[Date "2023.03.21"]
[WhiteClock "0:00:16"]
[BlackClock "0:00:21"]

1. d4 {[%clk 0:02:53]}  Nf6 {[%clk 0:02:53]} 2. c4 {[%clk 0:02:52]}  Nc6 {[%clk 0:02:53]} 3. Nf3 {[%clk 0:02:50]}  e6 {[%clk 0:02:52]} 4. a3 {[%clk 0:02:50]}  g6 {[%clk 0:02:47]} 5. Nc3 {[%clk 0:02:49]}  Bg7 {[%clk 0:02:47]} 6. e4 {[%clk 0:02:48]}  d6 {[%clk 0:02:47]} 7. Be2 {[%clk 0:02:44]}  O-O {[%clk 0:02:44]} 8. Bg5 {[%clk 0:02:31]}  h6 {[%clk 0:02:43]} 9. Bh4 {[%clk 0:02:31]}  e5 {[%clk 0:02:39]} 10. d5 {[%clk 0:02:30]}  Ne7 {[%clk 0:02:35]} 11. Nd2 {[%clk 0:02:29]}  g5 {[%clk 0:02:34]} 12. Bg3 {[%clk 0:02:28]}  Ng6 {[%clk 0:02:34]} 13. Nf1 {[%clk 0:02:19]}  Nf4 {[%clk 0:02:26]} 14. Ne3 {[%clk 0:02:19]}  c6 {[%clk 0:02:26]} 15. Kf1 {[%clk 0:02:18]}  Qb6 {[%clk 0:02:12]} 16. Rb1 {[%clk 0:02:16]}  Bd7 {[%clk 0:02:07]} 17. h4 {[%clk 0:02:13]}  Rac8 {[%clk 0:02:04]} 18. hxg5 {[%clk 0:02:13]}  hxg5 {[%clk 0:02:04]} 19. Bg4 {[%clk 0:02:09]}  Nxg4 {[%clk 0:01:54]} 20. Nxg4 {[%clk 0:02:08]}  Qd4 {[%clk 0:01:54]} 21. Ne3 {[%clk 0:02:07]}  Qxd1+ {[%clk 0:01:51]} 22. Rxd1 {[%clk 0:02:06]}  Rfd8 {[%clk 0:01:38]} 23. dxc6 {[%clk 0:01:56]}  bxc6 {[%clk 0:01:34]} 24. Rxd6 {[%clk 0:01:51]}  Be6 {[%clk 0:01:34]} 25. c5 {[%clk 0:01:36]}  Bf8 {[%clk 0:01:05]} 26. Rxd8 {[%clk 0:01:34]}  Rxd8 {[%clk 0:01:06]} 27. Bxf4 {[%clk 0:01:32]}  exf4 {[%clk 0:00:56]} 28. Nf5 {[%clk 0:01:28]}  Bxc5 {[%clk 0:00:56]} 29. Ke2 {[%clk 0:01:25]}  g4 {[%clk 0:00:43]} 30. Rd1 {[%clk 0:01:11]}  Re8 {[%clk 0:00:38]} 31. Nd6 {[%clk 0:01:08]}  Rb8 {[%clk 0:00:34]} 32. b4 {[%clk 0:01:06]}  Bb6 {[%clk 0:00:34]} 33. e5 {[%clk 0:01:01]}  Kg7 {[%clk 0:00:33]} 34. Nce4 {[%clk 0:00:59]}  Kg6 {[%clk 0:00:33]} 35. Rc1 {[%clk 0:00:42]}  Bd5 {[%clk 0:00:30]} 36. f3 {[%clk 0:00:41]}  a5 {[%clk 0:00:26]} 37. Nc5 {[%clk 0:00:35]}  axb4 {[%clk 0:00:26]} 38. Nd7 {[%clk 0:00:36]}  Be3 {[%clk 0:00:25]} 39. Rxc6 {[%clk 0:00:27]}  Bxc6 {[%clk 0:00:23]} 40. Nxb8 {[%clk 0:00:26]}  bxa3 {[%clk 0:00:22]} 41. Nxc6 {[%clk 0:00:16]}  a2 {[%clk 0:00:22]} 42. Ne7+ {[%clk 0:00:16]}  Kh7 {[%clk 0:00:21]} 0-1


[Site "https://www.chess.com"]